fUSD/lending_fUSD_20240612
["ID","MTS","AMOUNT","RATE_DAILY","PERIOD"]
[329274613,1718209834286,-158.06201661,0.00025928,2]
[329274614,1718209834297,-3000.0,0.00026,2]
[329274615,1718209834308,-154.6922437,0.00026106,2]
[329274616,1718209834318,-1009.12,0.0002615,2]
[329274617,1718209834328,-200.0,0.00026249,2]
[329274618,1718209834341,-1766.85,0.00026301,3]
[329274619,1718209834352,-158.06201661,0.00026858,2]
[329274620,1718209834362,-154.6922437,0.00026866,2]
[329274621,1718209834372,-153.70819959,0.00026967,2]
[329274622,1718209834385,-17804.38443806,0.00027,2]
[329274623,1718209834397,-150.0,0.00027,2]
[329274624,1718209834408,-152.0,0.0002714,3]
[329274625,1718209834419,-306.00668393,0.000272,2]
[329274626,1718209834776,-1707.68462048,0.000272,2]
[329274627,1718209834788,-154.06645661,0.0002732,2]
[329274628,1718209834800,-4964.01,0.00027335,2]
[329274629,1718209834811,-162.12,0.00027397,2]
[329274630,1718209834827,-150.0,0.00027397,2]
[329274631,1718209834846,-185.24773395,0.000274,2]
[329274632,1718209834857,-2000.0,0.000274,2]
[329274633,1718209834869,-1009.12,0.000274,2]
[329274634,1718209834879,-161.39797391,0.00027405,2]
[329274635,1718209834891,-8342.19897746,0.0002772,2]
[329274636,1718209834904,-3328.87332664,0.0002772,2]
[329274637,1718209834915,-92.39456837,0.00027792,2]
[329274638,1718209834982,-65.66744824,0.00027792,2]
[329274639,1718209834992,-166.66666666,0.0002781,2]
[329274640,1718209835003,-154.6922437,0.00027828,2]
[329274641,1718209835014,-153.70819959,0.00027838,2]
[329274642,1718209835024,-158.06201661,0.00027839,2]
[329274643,1718209835035,-266.2781261,0.000279,2]
[329274644,1718209835052,-161.39797391,0.00027917,2]
[329274645,1718209835064,-800.0,0.00027973,7]
[329274646,1718209835074,-748.63,0.00027973,7]
[329274647,1718209835090,-431.83275388,0.00028,2]
[329274648,1718209835117,-469.26225557,0.00028,2]
[329274649,1718209835133,-158.06201661,0.0002805,2]
[329274650,1718209835143,-359.1,0.00028053,2]
[329274651,1718209835153,-153.7081996,0.00028076,2]
[329274652,1718209835164,-800.0,0.00028082,7]
[329274653,1718209835176,-156.62319908,0.00028087,2]
[329274654,1718209835187,-150.0,0.00028118,2]
[329274655,1718209835198,-158.06201661,0.00028181,2]
[329274656,1718209835208,-320.2,0.000282,15]
[329274657,1718209835219,-152.0,0.00028249,4]
[329274658,1718209835231,-156.62319908,0.00028268,2]
[329274659,1718209835242,-808.62121511,0.0002839,2]
[329274660,1718209835252,-61458.4027,0.00028564,2]
[329274661,1718209835265,-200.0,0.00028635,2]
[329274662,1718209835277,-1009.12,0.0002865,2]
[329274663,1718209835288,-625.70433105,0.00028788,2]
[329274664,1718209835298,-3000.0,0.000288,2]
[329274665,1718209835309,-150.0,0.00028839,2]
[329274666,1718209835319,-221.8351315,0.00028897,2]
[329274667,1718209835330,-400.0,0.000289,10]
[329274668,1718209835344,-173.34889558,0.000289,2]
[329274669,1718209835355,-318.93601992,0.000289,2]
[329274670,1718209835365,-200.0,0.00028916,2]
[329274671,1718209835375,-1000.0,0.00028916,30]
[329274672,1718209835386,-500.0,0.00028916,2]
[329274673,1718209835396,-200.0,0.00028916,2]
[329274674,1718209835407,-678.76,0.00028978,2]
[329274675,1718209835418,-619.13,0.00028979,2]
[329274676,1718209835428,-150.0,0.00028987,2]
[329274677,1718209835439,-500.0,0.00028989,2]
[329274678,1718209835450,-500.0,0.00028989,2]
[329274679,1718209835461,-500.0,0.00028989,2]
[329274680,1718209835473,-500.0,0.00028989,2]
[329274681,1718209835484,-528.63832219,0.00028989,2]
[329274682,1718209835495,-500.0,0.00028989,2]
[329274683,1718209835505,-462.68207862,0.00028989,2]
[329274684,1718209835516,-500.0,0.00028989,2]
[329274685,1718209835526,-537.50985262,0.00028989,2]
[329274686,1718209835538,-522.79288931,0.00028989,2]
[329274687,1718209835549,-500.0,0.00028989,2]
[329274688,1718209835560,-528.36244706,0.00028989,2]
[329274689,1718209835570,-500.0,0.00028989,2]
[329274690,1718209835581,-500.0,0.00028989,2]
[329274691,1718209835595,-589.40561655,0.00028989,2]
[329274692,1718209835606,-538.32365592,0.00028989,2]
[329274693,1718209835616,-500.0,0.00028989,2]
[329274694,1718209835626,-500.0,0.00028989,2]
[329274695,1718209835637,-500.0,0.00028989,2]
[329274696,1718209835647,-1253.22,0.00028989,2]
[329274697,1718209835661,-500.0,0.00028989,2]
[329274698,1718209835675,-561.2,0.00028989,2]
[329274699,1718209835685,-500.0,0.00028989,2]
[329274700,1718209835697,-500.0,0.00028989,2]
[329274701,1718209835708,-500.0,0.00028989,2]
[329274702,1718209835718,-500.0,0.00028989,2]
[329274703,1718209835728,-500.0,0.00028989,2]
[329274704,1718209835738,-151.71,0.0002899,2]
[329274705,1718209835749,-678.76,0.0002899,2]
[329274706,1718209835760,-678.76,0.0002899,2]
[329274707,1718209835771,-678.76,0.0002899,2]
[329274708,1718209835781,-678.76,0.0002899,2]
[329274709,1718209835792,-619.13,0.0002899,2]
[329274710,1718209835802,-619.13,0.0002899,2]
[329274711,1718209835812,-150.0,0.00028992,2]
[329274712,1718209835823,-150.0,0.00028993,2]
[329274713,1718209835833,-203.74,0.00028995,2]
[329274714,1718209835848,-500.0,0.00028997,2]
[329274715,1718209835860,-586.03,0.00028997,2]
[329274716,1718209835872,-500.0,0.00028997,2]
[329274717,1718209835882,-278.17084313,0.00028997,2]
[329274718,1718209835892,-533.15,0.00028997,2]
[329274719,1718209835904,-500.0,0.00028997,2]
[329274720,1718209835916,-500.0,0.00028997,2]
[329274721,1718209835926,-619.05,0.00028997,2]
[329274722,1718209835937,-586.59,0.00028997,2]
[329274723,1718209835947,-500.0,0.00028997,2]
[329274724,1718209835957,-500.0,0.00028997,2]
[329274725,1718209835968,-500.0,0.00028997,2]
[329274726,1718209835980,-500.0,0.00028997,2]
[329274727,1718209835991,-500.0,0.00028997,2]
[329274728,1718209836002,-500.0,0.00028997,2]
[329274729,1718209836013,-500.0,0.00028997,2]
[329274730,1718209836023,-500.0,0.00028997,2]
[329274731,1718209836033,-500.0,0.00028997,2]
[329274732,1718209836045,-500.0,0.00028997,2]
[329274733,1718209836055,-500.0,0.00028997,2]
[329274734,1718209836069,-500.0,0.00028997,2]
[329274735,1718209836081,-500.0,0.00028997,2]
[329274736,1718209836103,-500.0,0.00028997,2]
[329274737,1718209836126,-500.0,0.00028997,2]
[329274738,1718209836137,-500.0,0.00028998,2]
[329274739,1718209836147,-500.0,0.00028998,2]
[329274740,1718209836158,-500.0,0.00028998,2]
[329274741,1718209836168,-500.0,0.00028998,2]
[329274742,1718209836179,-500.0,0.00028998,2]
[329274743,1718209836190,-500.0,0.00028998,2]
[329274744,1718209836201,-500.0,0.00028998,2]
[329274745,1718209836213,-500.0,0.00028998,2]
[329274746,1718209836224,-500.0,0.00028998,2]
[329274747,1718209836235,-500.0,0.00028998,2]
[329274748,1718209836246,-500.0,0.00028998,2]
[329274749,1718209836257,-500.0,0.00028998,2]
[329274750,1718209836267,-500.0,0.00028998,2]
[329274751,1718209836279,-578.2,0.00028998,2]
[329274752,1718209836288,-500.0,0.00028998,2]
[329274753,1718209836301,-500.0,0.00028998,2]
[329274754,1718209836311,-500.0,0.00028998,2]
[329274755,1718209836322,-500.0,0.00028998,2]
[329274756,1718209836332,-500.0,0.00028998,2]
[329274757,1718209836345,-500.0,0.00028998,2]
[329274758,1718209836355,-818.84,0.00028998,2]
[329274759,1718209836366,-500.0,0.00028998,2]
[329274760,1718209836379,-500.0,0.00028998,2]
[329274761,1718209836393,-500.0,0.00028998,2]
[329274762,1718209836404,-583.7998545,0.00028998,2]
[329274763,1718209836423,-500.0,0.00028998,2]
[329274764,1718209836479,-500.0,0.00028999,2]
[329274765,1718209836490,-500.0,0.00028999,2]
[329274766,1718209836508,-500.0,0.00028999,2]
[329274767,1718209836520,-168.79481121,0.00029,2]
[329274768,1718209836531,-52719.97060973,0.00029,2]
[329274769,1718209836550,-1126.80000001,0.00029,2]
[329274770,1718209838187,-541.74,0.00027397,10]
[329274771,1718209838197,-380.68506356,0.00028,2]
[329274772,1718209838210,-380.68506356,0.00028,2]
[329274773,1718209838224,-380.68506356,0.00028,2]
[329274774,1718209838236,-380.68506356,0.00028,2]
[329274775,1718209838249,-380.68506356,0.00028,2]
[329274776,1718209838262,-85.03559772,0.00028,2]
[329274784,1718209841140,-150.000787,0.0002617,2]
[329274785,1718209841160,-295.64946584,0.00028,2]
[329274786,1718209841173,-380.68506356,0.00028,2]
[329274787,1718209841189,-380.68506356,0.00028,2]
[329274788,1718209841204,-380.68506356,0.00028,2]
[329274789,1718209841221,-380.68506356,0.00028,2]
[329274790,1718209841243,-380.68506356,0.00028,2]
[329274791,1718209841257,-380.68506356,0.00028,2]
[329274792,1718209841275,-380.68506356,0.00028,2]
[329274793,1718209841303,-380.68506356,0.00028,2]
[329274794,1718209841319,-380.68506356,0.00028,2]
[329274795,1718209841333,-380.68506356,0.00028,2]
[329274796,1718209841349,-380.68506356,0.00028,2]
[329274797,1718209841362,-380.68506356,0.00028,2]
[329274798,1718209841375,-219.66142882,0.00028385,2]
[329274799,1718209841391,-24.80857118,0.00028385,2]
[329274800,1718209841403,-169.69,0.0002899,2]
[329274801,1718209841417,-169.69,0.0002899,2]
[329274802,1718209841432,-33.44241269,0.00028997,2]
[329274803,1718209841466,-466.55758731,0.00028997,2]
[329274804,1718209841499,-59.94101394,0.00028998,2]
[329274805,1718209841528,-567.47574197,0.00028998,2]
[329274806,1718209841575,-500.0,0.00028998,2]
[329274807,1718209841599,-711.80700576,0.00029,2]
[329274808,1718209841619,-528.5269001,0.00029,2]
[329274825,1718209846512,-159.1918364,0.00025,2]
[329274826,1718209846523,-199.08,0.00027379,2]
[329274827,1718209846536,-198.66816351,0.00028,2]
[329274828,1718209846753,-182.01690005,0.00028,2]
[329274830,1718209846764,-380.68506356,0.00028,2]
[329274831,1718209846776,-107.99803639,0.00028,2]
[329274834,1718209846793,-272.68702717,0.00028,2]
[329274835,1718209846808,-380.68506356,0.00028,2]
[329274836,1718209846820,-380.68506356,0.00028,2]
[329274838,1718209846831,-380.68506356,0.00028,2]
[329274839,1718209846842,-380.68506356,0.00028,2]
[329274840,1718209846856,-380.68506356,0.00028,2]
[329274841,1718209846867,-380.68506356,0.00028,2]
[329274842,1718209846878,-380.68506356,0.00028,2]
[329274843,1718209846892,-380.68506356,0.00028,2]
[329274844,1718209846904,-380.68506356,0.00028,2]
[329274845,1718209846916,-380.68506356,0.00028,2]
[329274846,1718209846927,-380.68506356,0.00028,2]
[329274847,1718209846938,-380.68506356,0.00028,2]
[329274848,1718209846949,-380.68506356,0.00028,2]
[329274849,1718209846960,-380.68506356,0.00028,2]
[329274850,1718209846971,-380.68506356,0.00028,2]
[329274851,1718209846982,-380.68506356,0.00028,2]
[329274852,1718209846993,-380.68506356,0.00028,2]
[329274853,1718209847004,-4935.98,0.00028019,2]
[329274854,1718209847014,-500.0,0.00028563,2]
[329274855,1718209847025,-169.69,0.0002899,2]
[329274856,1718209847037,-169.69,0.0002899,2]
[329274857,1718209847049,-169.69,0.0002899,2]
[329274858,1718209847064,-451.45,0.0002899,10]
[329274859,1718209847075,-500.0,0.00028997,2]
[329274860,1718209847087,-500.0,0.00028997,2]
[329274861,1718209847102,-500.0,0.00028998,2]
[329274862,1718209847127,-54994.84291413,0.00029,2]
[329274863,1718209847146,-271.26559914,0.00028,2]
[329274864,1718209847161,-109.41946442,0.00028,2]
[329274865,1718209847174,-5046.7893989,0.00029,2]
[329274866,1718209847189,-3204.33915108,0.00029,2]
[329274867,1718209847203,-1570.55517767,0.00029,2]
[329274868,1718209847216,-17865.6489179,0.00029,2]
[329274869,1718209847230,-3753.150025,0.00029,2]
[329274870,1718209847244,-9467.69973926,0.00029,2]
[329274872,1718209847272,-3885.50843638,0.00029,2]
[329274875,1718209847577,-380.68506356,0.00028,2]
[329274876,1718209847588,-380.68506356,0.00028,2]
[329274877,1718209847604,-945.62987288,0.00029,2]
[329274878,1718209847618,-4247.25,0.00029,2]
[329274879,1718209847883,-1647.09143245,0.00029,2]
[329274880,1718209847897,-1388.01775311,0.00029,2]
[329274881,1718209847910,-2779.2,0.00029,2]
[329274882,1718209847925,-27742.84268127,0.00029,2]
[329274883,1718209847939,-1221.04577274,0.00029,2]
[329274884,1718209847953,-348.61,0.00029,2]
[329274885,1718209847967,-8972.87043737,0.00029,2]
[329274886,1718209847982,-1525.32,0.00029,2]
[329274887,1718209848337,-380.68506356,0.00028043,2]
[329274888,1718209848354,-380.68506356,0.0002819,2]
[329274889,1718209848367,-734.31001291,0.00029,2]
[329274890,1718209848383,-325.49043683,0.00029,2]
[329274891,1718209848397,-1677.4,0.00029,2]
[329274892,1718209848413,-1974.92021585,0.00029,2]
[329274894,1718209848619,-380.68506356,0.00028554,2]
[329274896,1718209848631,-11245.29891743,0.00029,2]
[329274898,1718209848646,-4062.86103156,0.00029,2]
[329274900,1718209848660,-2247.44095932,0.00029,2]
[329274903,1718209848679,-272038.76220036,0.00029,2]
[329274905,1718209848693,-9611.96188361,0.00029,2]
[329274907,1718209848704,-1489.8087426,0.00029,2]
[329274910,1718209848720,-155.0,0.00029,7]
[329274912,1718209848731,-714.70400096,0.00029,2]
[329274914,1718209848746,-5000.0,0.00029,2]
[329274916,1718209848758,-692.14165,0.00029,2]
[329274918,1718209848770,-150.45733681,0.00029,30]
[329274920,1718209848781,-2409.411252,0.00029,30]
[329274922,1718209848794,-900.0,0.00029,10]
[329274946,1718209849062,-850.87,0.00029041,2]
[329274949,1718209849076,-150.0,0.00029042,2]
[329274950,1718209849086,-150.0,0.00029044,2]
[329274952,1718209849098,-619.13,0.0002906,2]
[329274954,1718209849126,-150.0,0.00029062,2]
[329274956,1718209849138,-553.82,0.00029068,2]
[329274958,1718209849150,-500.0,0.00029068,2]
[329274960,1718209849161,-500.0,0.00029068,2]
[329274962,1718209849173,-543.04167128,0.00029068,2]
[329274964,1718209849184,-500.0,0.00029068,2]
[329274966,1718209849194,-370.27272899,0.00029068,2]
[329274968,1718209849205,-500.0,0.00029068,2]
[329274970,1718209849215,-50000.0,0.0002907,2]
[329274972,1718209849225,-150.0,0.00029086,2]
[329274974,1718209849237,-150.0,0.00029096,2]
[329274976,1718209849248,-1400.0,0.000291,10]
[329274978,1718209849260,-150.0,0.00029111,2]
[329274980,1718209849270,-500.0,0.00029126,2]
[329274982,1718209849282,-500.0,0.00029126,2]
[329274984,1718209849293,-500.0,0.00029126,2]
[329274986,1718209849305,-500.0,0.00029126,2]
[329274988,1718209849317,-377.76674486,0.00029126,2]
[329274990,1718209849327,-500.0,0.00029126,2]
[329274992,1718209849338,-500.0,0.00029126,2]
[329274994,1718209849352,-555.57462061,0.00029126,2]
[329274996,1718209849363,-178.61270226,0.00029126,2]
[329274998,1718209849373,-1253.22,0.00029126,2]
[329275000,1718209849383,-549.29049504,0.00029126,2]
[329275002,1718209849393,-159.79,0.00029126,2]
[329275004,1718209849403,-500.0,0.00029126,2]
[329275005,1718209849413,-500.0,0.00029126,2]
[329275007,1718209849425,-150.357,0.00029126,2]
[329275009,1718209849436,-155.0,0.00029128,2]
[329275011,1718209849446,-500.0,0.00029134,2]
[329275013,1718209849456,-500.0,0.00029134,2]
[329275015,1718209849467,-500.0,0.00029134,2]
[329275017,1718209849478,-500.0,0.00029134,2]
[329275019,1718209849488,-500.0,0.00029134,2]
[329275021,1718209849501,-500.0,0.00029134,2]
[329275023,1718209849511,-500.0,0.00029134,2]
[329275025,1718209849522,-500.0,0.00029134,2]
[329275027,1718209849533,-500.0,0.00029134,2]
[329275029,1718209849545,-500.0,0.00029134,2]
[329275031,1718209849555,-365.32,0.00029134,2]
[329275033,1718209849567,-174.05,0.00029134,2]
[329275035,1718209849578,-500.0,0.00029134,2]
[329275037,1718209849588,-500.0,0.00029134,2]
[329275039,1718209849599,-642.39,0.00029134,2]
[329275041,1718209849612,-425.38,0.00029134,2]
[329275043,1718209849622,-500.0,0.00029134,2]
[329275045,1718209849633,-500.0,0.00029134,2]
[329275047,1718209849644,-342.81,0.00029134,2]
[329275049,1718209849654,-500.0,0.00029135,2]
[329275051,1718209849664,-500.0,0.00029135,2]
[329275053,1718209849674,-500.0,0.00029135,2]
[329275055,1718209849684,-486.03,0.00029135,2]
[329275057,1718209849695,-541.12,0.00029135,2]
[329275059,1718209849707,-567.35,0.00029135,2]
[329275062,1718209849721,-425.96,0.00029135,2]
[329275064,1718209849733,-500.0,0.00029135,2]
[329275066,1718209849744,-500.0,0.00029135,2]
[329275067,1718209849755,-500.0,0.00029135,2]
[329275069,1718209849770,-403.64,0.00029135,2]
[329275072,1718209849782,-500.0,0.00029135,2]
[329275074,1718209849793,-305.18,0.00029135,2]
[329275076,1718209849803,-500.0,0.00029135,2]
[329275078,1718209849812,-500.0,0.00029135,2]
[329275080,1718209849822,-818.84,0.00029135,2]
[329275082,1718209849832,-500.0,0.00029135,2]
[329275084,1718209849845,-500.0,0.00029135,2]
[329275085,1718209849864,-500.0,0.00029135,2]
[329275087,1718209849880,-500.0,0.00029135,2]
[329275089,1718209849892,-500.0,0.00029135,2]
[329275091,1718209849905,-181.29778206,0.00029136,2]
[329275094,1718209849918,-318.70221794,0.00029136,2]
[329275096,1718209849928,-500.0,0.00029136,2]
[329275098,1718209849938,-3616.63103136,0.0002914,2]
[329275100,1718209849951,-1371.28896864,0.0002914,2]
[329275102,1718209849961,-819.0,0.00029148,2]
[329275104,1718209849972,-150.0,0.00029156,2]
[329275106,1718209849982,-150.0,0.00029198,2]
[329275108,1718209849992,-494.81368836,0.000292,10]
[329275111,1718209850009,-370.27272899,0.00028554,2]
[329275113,1718209850021,-10.41233457,0.00028554,2]
[329275116,1718209850033,-1405.18631164,0.000292,10]
[329275119,1718209850042,-562.28704186,0.00029205,2]
[329275121,1718209850055,-525.48,0.00029205,2]
[329275123,1718209850064,-500.0,0.00029205,2]
[329275125,1718209850075,-150.0,0.00029212,2]
[329275127,1718209850085,-150.0,0.00029238,2]
[329275129,1718209850098,-150.0,0.00029241,2]
[329275132,1718209850132,-150.0,0.00029242,2]
[329275134,1718209850143,-150.0,0.00029245,2]
[329275136,1718209850156,-150.0,0.00029249,2]
[329275138,1718209850166,-500.0,0.00029263,2]
[329275140,1718209850176,-500.0,0.00029263,2]
[329275142,1718209850188,-500.0,0.00029263,2]
[329275144,1718209850198,-365.05748108,0.00029263,2]
[329275146,1718209850208,-221.01472609,0.00029263,2]
[329275147,1718209850219,-500.0,0.00029263,2]
[329275150,1718209850232,-1253.22,0.00029263,2]
[329275151,1718209850242,-500.0,0.00029263,2]
[329275153,1718209850253,-175.86,0.00029263,2]
[329275155,1718209850263,-167.35,0.00029271,2]
[329275158,1718209850276,-500.0,0.00029271,2]
[329275160,1718209850286,-208.09,0.00029271,2]
[329275162,1718209850296,-500.0,0.00029271,2]
[329275163,1718209850307,-500.0,0.00029271,2]
[329275165,1718209850317,-500.0,0.00029271,2]
[329275167,1718209850327,-464.38,0.00029271,2]
[329275170,1718209850341,-500.0,0.00029271,2]
[329275172,1718209850362,-500.0,0.00029271,2]
[329275174,1718209850374,-252.22,0.00029271,2]
[329275176,1718209850388,-500.0,0.00029271,2]
[329275178,1718209850402,-500.0,0.00029271,2]
[329275180,1718209850413,-301.62,0.00029271,2]
[329275182,1718209850425,-589.91,0.00029272,2]
[329275184,1718209850435,-554.2,0.00029272,2]
[329275186,1718209850446,-500.0,0.00029272,2]
[329275188,1718209850457,-500.0,0.00029272,2]
[329275190,1718209850471,-263.93,0.00029272,2]
[329275192,1718209850486,-621.3,0.00029272,2]
[329275194,1718209850497,-500.0,0.00029272,2]
[329275196,1718209850510,-818.84,0.00029272,2]
[329275198,1718209850521,-500.0,0.00029272,2]
[329275200,1718209850531,-516.46,0.00029272,2]
[329275202,1718209850541,-500.0,0.00029272,2]
[329275204,1718209850551,-500.0,0.00029272,2]
[329275206,1718209850562,-320.5,0.00029272,2]
[329275208,1718209850574,-500.0,0.00029273,2]
[329275210,1718209850584,-500.0,0.00029273,2]
[329275212,1718209850596,-616.0,0.000293,2]
[329275214,1718209850610,-2400.0,0.000293,10]
[329275216,1718209850620,-150.0,0.00029309,2]
[329275218,1718209850631,-1927.75,0.0002931,30]
[329275220,1718209850641,-150.0,0.00029316,2]
[329275222,1718209850653,-150.0,0.00029319,2]
[329275224,1718209850665,-150.0,0.00029326,2]
[329275226,1718209850675,-500.0,0.00029342,2]
[329275228,1718209850685,-150.0,0.00029353,2]
[329275230,1718209850696,-150.0,0.00029354,2]
[329275232,1718209850706,-152.0,0.00029357,5]
[329275234,1718209850718,-150.0,0.00029358,2]
[329275236,1718209850730,-150.0,0.00029376,2]
[329275238,1718209850741,-150.0,0.00029386,2]
[329275240,1718209850752,-1930.0,0.000294,2]
[329275242,1718209850763,-192.42,0.000294,2]
[329275244,1718209850774,-500.0,0.000294,2]
[329275246,1718209850787,-500.0,0.000294,2]
[329275249,1718209850805,-500.0,0.000294,2]
[329275250,1718209850816,-1253.22,0.000294,2]
[329275252,1718209850827,-400.0,0.000294,10]
[329275254,1718209850837,-500.0,0.000294,2]
[329275256,1718209850849,-150.0,0.00029402,2]
[329275258,1718209850864,-150.0,0.00029403,2]
[329275261,1718209850876,-500.0,0.00029408,2]
[329275263,1718209850886,-574.42951691,0.00029408,2]
[329275264,1718209850897,-500.0,0.00029408,2]
[329275266,1718209850909,-500.0,0.00029408,2]
[329275268,1718209850919,-500.0,0.00029408,2]
[329275270,1718209850930,-150.0,0.00029408,2]
[329275272,1718209850944,-242.02,0.00029408,2]
[329275274,1718209850954,-500.0,0.00029408,2]
[329275276,1718209850965,-500.0,0.00029408,2]
[329275278,1718209850980,-590.78,0.00029409,2]
[329275280,1718209850991,-500.0,0.00029409,2]
[329275282,1718209851003,-153.38,0.00029409,2]
[329275284,1718209851016,-818.84,0.00029409,2]
[329275286,1718209851029,-500.0,0.00029409,2]
[329275288,1718209851040,-500.0,0.00029409,2]
[329275290,1718209851051,-500.0,0.00029409,2]
[329275292,1718209851065,-500.0,0.0002941,2]
[329275294,1718209851076,-500.0,0.0002941,2]
[329275296,1718209851086,-150.0,0.00029425,2]
[329275298,1718209851097,-819.0,0.00029449,2]
[329275300,1718209851123,-150.0,0.00029454,2]
[329275302,1718209851134,-150.0,0.00029462,2]
[329275304,1718209851147,-150.0,0.00029465,2]
[329275306,1718209851158,-500.0,0.00029479,2]
[329275308,1718209851170,-150.0,0.0002949,2]
[329275310,1718209851180,-226.92022958,0.000295,3]
[329275312,1718209851191,-400.0,0.000295,10]
[329275314,1718209851202,-150.0,0.00029502,2]
[329275315,1718209851212,-500.0,0.00029537,2]
[329275316,1718209851225,-247.55724577,0.00029537,2]
[329275317,1718209851240,-275.66275423,0.00029537,2]
[329275318,1718209851251,-31.74085134,0.00029537,2]
[329275320,1718209851273,-380.68506356,0.00028554,2]
[329275322,1718209851283,-288.49914866,0.00029537,2]
[329275324,1718209851294,-1253.22,0.00029537,2]
[329275326,1718209851306,-500.0,0.00029537,2]
[329275328,1718209851317,-500.0,0.00029545,2]
[329275330,1718209851329,-370.57961359,0.00029545,2]
[329275332,1718209851344,-156.02082473,0.00029545,2]
[329275334,1718209851359,-376.86,0.00029545,2]
[329275336,1718209851370,-500.0,0.00029545,2]
[329275338,1718209851381,-500.0,0.00029545,2]
[329275340,1718209851391,-202.44515304,0.00029546,2]
[329275342,1718209851402,-818.84,0.00029546,2]
[329275344,1718209851413,-500.0,0.00029546,2]
[329275346,1718209851427,-467.12,0.00029546,2]
[329275348,1718209851441,-500.0,0.00029546,2]
[329275350,1718209851454,-500.0,0.00029547,2]
[329275352,1718209851466,-500.0,0.00029547,2]
[329275354,1718209851477,-150.0,0.0002956,2]
[329275356,1718209851489,-150.0,0.00029583,2]
[329275358,1718209851499,-150.0,0.00029594,2]
[329275360,1718209851510,-400.0,0.000296,10]
[329275362,1718209851521,-150.0,0.00029608,2]
[329275363,1718209851531,-500.0,0.00029616,2]
[329275364,1718209851542,-150.0,0.00029625,2]
[329275365,1718209851553,-150.0,0.00029646,2]
[329275366,1718209851564,-150.0,0.00029654,2]
[329275367,1718209851574,-329.90705038,0.00029655,2]
[329275368,1718209851585,-417.62,0.00029669,2]
[329275370,1718209851596,-417.62,0.00029669,2]
[329275372,1718209851610,-413.66,0.00029669,2]
[329275374,1718209851622,-496.84,0.00029674,2]
[329275376,1718209851634,-1253.22,0.00029674,2]
[329275378,1718209851645,-500.0,0.00029674,2]
[329275380,1718209851657,-150.0,0.00029674,2]
[329275382,1718209851668,-500.0,0.00029682,2]
[329275384,1718209851678,-455.3,0.00029682,2]
[329275386,1718209851690,-231.73,0.00029682,2]
[329275388,1718209851702,-818.84,0.00029683,2]
[329275391,1718209851713,-500.0,0.00029683,2]
[329275393,1718209851724,-150.0,0.00029683,2]
[329275395,1718209851736,-500.0,0.00029683,2]
[329275396,1718209851748,-500.0,0.00029684,2]
[329275398,1718209851760,-500.0,0.00029684,2]
[329275401,1718209851772,-253.20337282,0.00029688,2]
[329275403,1718209851783,-150.0,0.00029691,2]
[329275405,1718209851795,-150.0,0.00029693,2]
[329275407,1718209851806,-500.96347376,0.00029699,2]
[329275409,1718209851816,-400.0,0.000297,10]
[329275411,1718209851828,-280.0,0.000297,2]